fUST/lending_fUST_20250330
["ID","MTS","AMOUNT","RATE_DAILY","PERIOD"]
[356859148,1743336695570,-635.01623443,0.0002674,2]
[356859149,1743336695579,-635.01623443,0.00026877,2]
[356859150,1743336695589,-150.0,0.00026922,2]
[356859151,1743336695598,-542.0,0.00026922,2]
[356859152,1743336695608,-1915.0,0.00026922,2]
[356859153,1743336695617,-2260.0,0.00026922,2]
[356859154,1743336695627,-160.0,0.00026966,4]
[356859155,1743336695636,-455.610464,0.00027,30]
[356859156,1743336695646,-2000.0,0.00027,4]
[356859157,1743336695655,-635.01623443,0.00027014,2]
[356859158,1743336695665,-635.01623443,0.00027123,2]
[356859159,1743336695674,-635.01623443,0.0002726,2]
[356859160,1743336695684,-7704.74518475,0.00027314,7]
[356859161,1743336695693,-150.658996,0.00027332,3]
[356859162,1743336695703,-500.0,0.00027397,2]
[356859163,1743336695712,-377.38644015,0.00027397,2]
[356859164,1743336695722,-500.0,0.00027397,2]
[356859165,1743336695731,-198.92712167,0.00027397,2]
[356859166,1743336695740,-500.0,0.00027397,2]
[356859167,1743336695753,-500.0,0.00027397,2]
[356859168,1743336695762,-500.0,0.00027397,2]
[356859169,1743336695772,-500.0,0.00027397,2]
[356859170,1743336695781,-516.330017,0.00027397,2]
[356859171,1743336695791,-500.0,0.00027397,2]
[356859172,1743336695801,-500.0,0.00027397,2]
[356859173,1743336695811,-500.0,0.00027397,2]
[356859174,1743336695821,-500.0,0.00027397,2]
[356859175,1743336695831,-500.0,0.00027397,2]
[356859176,1743336695841,-500.0,0.00027397,2]
[356859177,1743336695851,-500.0,0.00027397,2]
[356859178,1743336695862,-500.0,0.00027397,2]
[356859179,1743336695871,-500.0,0.00027397,2]
[356859180,1743336695880,-500.0,0.00027397,2]
[356859181,1743336695889,-500.0,0.00027397,2]
[356859182,1743336695899,-500.0,0.00027397,2]
[356859183,1743336695908,-500.0,0.00027397,2]
[356859184,1743336695919,-500.0,0.00027397,2]
[356859185,1743336695928,-500.0,0.00027397,2]
[356859186,1743336695938,-500.0,0.00027397,2]
[356859187,1743336695947,-500.0,0.00027397,2]
[356859188,1743336695956,-500.0,0.00027397,2]
[356859189,1743336695966,-500.0,0.00027397,2]
[356859190,1743336695975,-500.0,0.00027397,2]
[356859191,1743336695984,-500.0,0.00027397,2]
[356859192,1743336695994,-500.0,0.00027397,2]
[356859193,1743336696003,-241.37456856,0.00027397,2]
[356859194,1743336696012,-500.0,0.00027397,2]
[356859195,1743336696022,-500.0,0.00027397,2]
[356859196,1743336696032,-500.0,0.00027397,2]
[356859197,1743336696042,-500.0,0.00027397,2]
[356859198,1743336696052,-500.0,0.00027397,2]
[356859199,1743336696062,-500.0,0.00027397,2]
[356859200,1743336696072,-500.0,0.00027397,2]
[356859201,1743336696081,-500.0,0.00027397,2]
[356859202,1743336696092,-500.0,0.00027397,2]
[356859203,1743336696101,-500.0,0.00027397,2]
[356859204,1743336696112,-500.0,0.00027397,2]
[356859205,1743336696122,-500.0,0.00027397,2]
[356859206,1743336696132,-500.0,0.00027397,2]
[356859207,1743336696141,-500.0,0.00027397,2]
[356859208,1743336696151,-500.0,0.00027397,2]
[356859209,1743336696161,-500.0,0.00027397,2]
[356859210,1743336696170,-500.0,0.00027397,2]
[356859211,1743336696180,-500.0,0.00027397,2]
[356859212,1743336696191,-500.0,0.00027397,2]
[356859213,1743336696201,-500.0,0.00027397,2]
[356859214,1743336696211,-500.0,0.00027397,2]
[356859215,1743336696221,-500.0,0.00027397,2]
[356859216,1743336696230,-500.0,0.00027397,2]
[356859217,1743336696240,-500.0,0.00027397,2]
[356859218,1743336696250,-500.0,0.00027397,2]
[356859219,1743336696262,-500.0,0.00027397,2]
[356859220,1743336696271,-500.0,0.00027397,2]
[356859221,1743336696282,-500.0,0.00027397,2]
[356859222,1743336696292,-500.0,0.00027397,2]
[356859223,1743336696302,-500.0,0.00027397,2]
[356859224,1743336696311,-500.0,0.00027397,2]
[356859225,1743336696321,-500.0,0.00027397,2]
[356859226,1743336696330,-500.0,0.00027397,2]
[356859227,1743336696340,-500.0,0.00027397,2]
[356859228,1743336696350,-500.0,0.00027397,2]
[356859229,1743336696360,-500.0,0.00027397,2]
[356859230,1743336696369,-500.0,0.00027397,2]
[356859231,1743336696379,-500.0,0.00027397,2]
[356859232,1743336696389,-500.0,0.00027397,2]
[356859233,1743336696398,-500.0,0.00027397,2]
[356859234,1743336696408,-500.0,0.00027397,2]
[356859235,1743336696418,-500.0,0.00027397,2]
[356859236,1743336696427,-500.0,0.00027397,2]
[356859237,1743336696438,-500.0,0.00027397,2]
[356859238,1743336696447,-500.0,0.00027397,2]
[356859239,1743336696457,-500.0,0.00027397,2]
[356859240,1743336696647,-500.0,0.00027397,2]
[356859241,1743336696659,-500.0,0.00027397,2]
[356859242,1743336696669,-500.0,0.00027397,2]
[356859243,1743336696678,-500.0,0.00027397,2]
[356859244,1743336696688,-500.0,0.00027397,2]
[356859245,1743336696698,-500.0,0.00027397,2]
[356859246,1743336696707,-500.0,0.00027397,2]
[356859247,1743336696718,-500.0,0.00027397,2]
[356859248,1743336696728,-500.0,0.00027397,2]
[356859249,1743336696738,-500.0,0.00027397,2]
[356859250,1743336696748,-500.0,0.00027397,2]
[356859251,1743336696762,-500.0,0.00027397,2]
[356859252,1743336696772,-500.0,0.00027397,2]
[356859253,1743336696781,-500.0,0.00027397,2]
[356859254,1743336696791,-500.0,0.00027397,2]
[356859255,1743336696802,-500.0,0.00027397,2]
[356859256,1743336696811,-627.34359079,0.00027397,2]
[356859257,1743336696821,-500.0,0.00027397,2]
[356859258,1743336696832,-635.01623443,0.00027397,2]
[356859259,1743336696842,-500.0,0.00027397,5]
[356859260,1743336696852,-500.0,0.00027397,5]
[356859261,1743336696862,-150.40931843,0.00027397,5]
[356859262,1743336696871,-150.0,0.00027397,5]
[356859263,1743336696881,-635.01623443,0.00027507,2]
[356859264,1743336696891,-635.01623443,0.00027644,2]
[356859265,1743336696901,-4427.0,0.00027672,2]
[356859266,1743336696911,-160.0,0.00027748,5]
[356859267,1743336696920,-635.01623443,0.00027781,2]
[356859268,1743336696930,-455.610464,0.0002789,3]
[356859269,1743336696940,-635.01623443,0.0002789,2]
[356859270,1743336696949,-12500.0,0.00027893,3]
[356859271,1743336696959,-12500.0,0.00027902,3]
[356859272,1743336696968,-12500.0,0.00027911,3]
[356859273,1743336696977,-12500.0,0.00027919,3]
[356859274,1743336696987,-12500.0,0.00027928,3]
[356859275,1743336696996,-2500.0,0.00027937,3]
[356859276,1743336697006,-2500.0,0.00027937,3]
[356859277,1743336697016,-12500.0,0.00027937,3]
[356859278,1743336697025,-2500.0,0.00027945,3]
[356859279,1743336697034,-2500.0,0.00027945,3]
[356859280,1743336697044,-2500.0,0.00027945,3]
[356859281,1743336697054,-210.0,0.00027945,5]
[356859282,1743336697063,-455.610464,0.00027964,3]
[356859283,1743336697073,-144592.51411444,0.00028,2]
[356859284,1743336697082,-10030.76175153,0.00028,7]
[356859285,1743336697092,-160.0,0.00028,3]
[356859286,1743336697102,-160.0,0.00028,7]
[356859287,1743336697111,-12458.93820146,0.00028,3]
[356859288,1743336697120,-12458.93820146,0.00028,7]
[356859289,1743336697130,-10000.0,0.00028,7]
[356859290,1743336697139,-160.0,0.00028,3]
[356859291,1743336697148,-160.0,0.00028,7]
[356859292,1743336697158,-835.47628717,0.00028,3]
[356859293,1743336697168,-418.75886239,0.00028,3]
[356859294,1743336697177,-455.610464,0.00028,30]
[356859295,1743336697188,-2000.0,0.00028,4]
[356859296,1743336697198,-7704.74518475,0.00028003,7]
[356859297,1743336697208,-455.610464,0.00028038,3]
[356859298,1743336697218,-455.610464,0.00028113,3]
[356859299,1743336697228,-455.610464,0.00028187,3]
[356859300,1743336697238,-500.0,0.00028279,2]
[356859301,1743336697248,-500.0,0.000283,2]
[356859302,1743336697258,-500.0,0.00028382,2]
[356859303,1743336697268,-500.0,0.00028469,2]
[356859304,1743336697278,-500.0,0.00028491,2]
[356859305,1743336697288,-270.0,0.00028493,5]
[356859306,1743336697298,-506.891703,0.000285,2]
[356859307,1743336697307,-160.0,0.00028531,6]
[356859308,1743336697317,-500.0,0.00028565,2]
[356859309,1743336697327,-500.0,0.00028601,2]
[356859310,1743336697336,-500.0,0.00028687,2]
[356859311,1743336697346,-7704.74518475,0.00028693,8]
[356859312,1743336697362,-500.0,0.00028726,2]
[356859313,1743336697375,-500.0,0.00028733,2]
[356859314,1743336697384,-1500.0,0.00028771,5]
[356859315,1743336697394,-1500.0,0.00028771,5]
[356859316,1743336697404,-1500.0,0.00028771,5]
[356859317,1743336697414,-1500.0,0.00028771,5]
[356859318,1743336697424,-510.96485551,0.00028771,5]
[356859319,1743336697433,-1500.0,0.00028771,2]
[356859320,1743336697443,-1500.0,0.00028771,5]
[356859321,1743336697453,-1000.0,0.00028771,5]
[356859322,1743336697463,-1500.0,0.00028771,5]
[356859323,1743336697472,-1500.0,0.00028771,5]
[356859324,1743336697482,-1500.0,0.00028771,5]
[356859325,1743336697491,-1500.0,0.00028771,5]
[356859326,1743336697501,-1500.0,0.00028771,5]
[356859327,1743336697512,-1500.0,0.00028771,5]
[356859328,1743336697522,-511.12613421,0.00028771,5]
[356859329,1743336697532,-1500.0,0.00028771,5]
[356859330,1743336697542,-1500.0,0.00028771,5]
[356859331,1743336697552,-1500.0,0.00028771,5]
[356859332,1743336697561,-271.39089633,0.00028771,5]
[356859333,1743336697571,-503.02420372,0.00028771,5]
[356859334,1743336697580,-1199.0,0.000288,2]
[356859335,1743336697590,-500.0,0.00028846,2]
[356859336,1743336697600,-500.0,0.000289,2]
[356859337,1743336697609,-500.0,0.00028933,2]
[356859338,1743336697619,-7757.0,0.00029,2]
[356859339,1743336697629,-1006.52438,0.00029,2]
[356859340,1743336697639,-500.0,0.00029,2]
[356859341,1743336697648,-455.610464,0.00029,30]
[356859342,1743336697657,-2000.0,0.00029,4]
[356859343,1743336697667,-330.0,0.00029041,5]
[356859344,1743336697676,-500.0,0.00029178,2]
[356859345,1743336697686,-500.0,0.00029193,2]
[356859346,1743336697695,-500.0,0.00029207,2]
[356859347,1743336697704,-500.0,0.00029276,2]
[356859348,1743336697713,-500.0,0.00029284,2]
[356859349,1743336697723,-500.0,0.00029298,2]
[356859350,1743336697733,-160.0,0.00029313,7]
[356859351,1743336697742,-2000.0,0.00029335,2]
[356859352,1743336697753,-500.0,0.00029381,2]
[356859353,1743336697764,-500.0,0.00029381,2]
[356859354,1743336697774,-7704.74518475,0.00029383,8]
[356859355,1743336697783,-563.25122534,0.00029388,2]
[356859356,1743336697793,-500.0,0.000294,2]
[356859357,1743336697803,-500.0,0.00029455,2]
[356859358,1743336697812,-500.0,0.00029474,2]
[356859359,1743336697821,-393.73,0.000295,2]
[356859360,1743336697832,-1000.0,0.000295,2]
[356859361,1743336697842,-500.0,0.000295,2]
[356859362,1743336697851,-390.0,0.00029589,5]
[356859363,1743336697861,-500.0,0.00029643,2]
[356859364,1743336697870,-500.0,0.00029745,2]
[356859365,1743336697879,-500.0,0.00029769,2]
[356859366,1743336697888,-500.0,0.00029806,2]
[356859367,1743336697898,-500.0,0.00029821,2]
[356859368,1743336697908,-500.0,0.00029899,2]
[356859369,1743336697917,-542.0,0.00029922,2]
[356859370,1743336697926,-1915.0,0.00029922,2]
[356859371,1743336697936,-2260.0,0.00029922,2]
[356859372,1743336697946,-204.0,0.0002993,30]
[356859373,1743336697955,-300.70642598,0.0002998,2]
[356859374,1743336697965,-500.0,0.00029996,2]
[356859375,1743336697974,-500.0,0.0003,2]
[356859376,1743336697983,-150.0,0.0003,2]
[356859377,1743336697992,-20738.68101478,0.0003,7]
[356859378,1743336698002,-285.314,0.0003,2]
[356859379,1743336698011,-285.314,0.0003,2]
[356859380,1743336698021,-1000.0,0.0003,2]
[356859381,1743336698031,-26009.15844244,0.0003,7]
[356859382,1743336698040,-26009.15844244,0.0003,7]
[356859383,1743336698050,-1010.46,0.0003,2]
[356859384,1743336698059,-300.46581823,0.0003,2]
[356859385,1743336698068,-219.0,0.0003,2]
[356859386,1743336698078,-1123.46040891,0.0003,7]
[356859387,1743336698087,-150.0,0.0003,2]
[356859388,1743336698096,-631.0,0.0003,2]
[356859389,1743336698106,-500.0,0.0003,2]
[356859390,1743336698115,-455.610464,0.0003,30]
[356859391,1743336698124,-166.0,0.0003,7]
[356859392,1743336698134,-166.0,0.0003,7]
[356859393,1743336698143,-209.71973129,0.0003,7]
[356859394,1743336698153,-162.89753949,0.0003,7]
[356859395,1743336698162,-356.0,0.0003,7]
[356859396,1743336698172,-356.0,0.0003,7]
[356859397,1743336698182,-318.0,0.0003,7]
[356859398,1743336698191,-356.0,0.0003,7]
[356859399,1743336698201,-356.0,0.0003,7]
[356859400,1743336698211,-318.0,0.0003,7]
[356859401,1743336698221,-356.0,0.0003,7]
[356859402,1743336698230,-318.0,0.0003,7]
[356859403,1743336698240,-356.0,0.0003,7]
[356859404,1743336698249,-318.0,0.0003,7]
[356859405,1743336698258,-356.0,0.0003,7]
[356859406,1743336698268,-356.0,0.0003,7]
[356859407,1743336698277,-356.0,0.0003,7]
[356859408,1743336698287,-318.0,0.0003,7]
[356859409,1743336698296,-356.0,0.0003,7]
[356859410,1743336698306,-356.0,0.0003,7]
[356859411,1743336698315,-356.0,0.0003,7]
[356859412,1743336698324,-318.0,0.0003,7]
[356859413,1743336698334,-356.0,0.0003,7]
[356859414,1743336698343,-318.0,0.0003,7]
[356859415,1743336698353,-356.0,0.0003,7]
[356859416,1743336698362,-318.0,0.0003,7]
[356859417,1743336698372,-356.0,0.0003,7]
[356859418,1743336698381,-318.0,0.0003,7]
[356859419,1743336698390,-356.0,0.0003,7]
[356859420,1743336698399,-318.0,0.0003,7]
[356859421,1743336698409,-356.0,0.0003,7]
[356859422,1743336698418,-318.0,0.0003,7]
[356859423,1743336698427,-411.42800113,0.0003,7]
[356859424,1743336698436,-318.0,0.0003,7]
[356859425,1743336698445,-318.0,0.0003,7]
[356859426,1743336698454,-318.0,0.0003,7]
[356859427,1743336698463,-318.0,0.0003,7]
[356859428,1743336698473,-318.0,0.0003,7]
[356859429,1743336698482,-318.0,0.0003,7]
[356859430,1743336698491,-318.0,0.0003,7]
[356859431,1743336698500,-318.0,0.0003,7]
[356859432,1743336698510,-500.0,0.00030057,7]
[356859433,1743336698519,-500.0,0.00030068,7]
[356859434,1743336698529,-7704.74518475,0.00030072,9]
[356859435,1743336698538,-500.0,0.00030094,7]
[356859436,1743336698547,-160.0,0.00030095,8]
[356859437,1743336698556,-169.0345807,0.00030095,5]
[356859438,1743336698565,-4654.44312175,0.00030136,7]
[356859439,1743336698574,-4654.44312175,0.00030136,7]
[356859440,1743336698583,-1000.0,0.00030136,90]
[356859441,1743336698592,-1000.0,0.00030136,90]
[356859442,1743336698601,-1000.0,0.00030136,90]
[356859443,1743336698611,-1000.0,0.00030136,90]
[356859444,1743336698620,-1000.0,0.00030136,90]
[356859445,1743336698630,-1000.0,0.00030136,90]
[356859446,1743336698639,-1000.0,0.00030136,90]
[356859447,1743336698648,-1000.0,0.00030136,90]
[356859448,1743336698658,-1000.0,0.00030136,90]
[356859449,1743336698667,-215.17132985,0.00030136,90]
[356859450,1743336698676,-1000.0,0.00030137,5]
[356859451,1743336698686,-450.0,0.00030137,5]
[356859452,1743336698695,-275.67291592,0.00030155,7]
[356859453,1743336698705,-275.67291592,0.00030155,7]
[356859454,1743336698714,-26072.12431096,0.00030155,7]
[356859455,1743336698723,-6795.37396884,0.00030155,7]
[356859456,1743336698732,-6795.37396884,0.00030155,7]
[356859457,1743336698741,-5791.25482946,0.000302,7]
[356859458,1743336698751,-5791.25482946,0.000302,7]
[356859459,1743336698763,-1350077.27,0.000302,14]
[356859460,1743336698772,-204.0,0.000302,30]
[356859461,1743336698781,-500.0,0.00030207,7]
[356859462,1743336698791,-834.47809314,0.00030226,7]
[356859463,1743336698802,-500.0,0.00030236,7]
[356859464,1743336698811,-740.05156707,0.00030259,7]
[356859465,1743336698821,-502.9798699,0.00030334,7]
[356859466,1743336698830,-3001.0,0.00030339,2]
[356859467,1743336698839,-26072.12431096,0.00030644,7]
[356859468,1743336698849,-510.0,0.00030685,5]
[356859469,1743336698858,-7704.74518475,0.00030762,9]
[356859470,1743336698867,-5000.0,0.00030764,2]
[356859471,1743336698876,-2831.63861583,0.00031,120]
[356859472,1743336698885,-160.0,0.00031,7]
[356859473,1743336698894,-500.0,0.00031164,7]
[356859474,1743336698903,-570.0,0.00031233,5]
[356859475,1743336698912,-7704.74518475,0.00031452,10]
[356859476,1743336698922,-570.2368043,0.00031686,34]
[356859477,1743336698931,-630.0,0.00031781,5]
[356859478,1743336698941,-7077.33874124,0.00031792,37]
[356859479,1743336698950,-270130.92399389,0.000318,14]
[356859480,1743336699204,-540.62,0.00024109,2]
[356859481,1743336699213,-369581.16503541,0.000318,14]
[356859482,1743336699667,-163.854189,0.00013699,2]
[356859483,1743336699676,-132.97540014,0.00013699,2]
[356859484,1743336699949,-30.87878886,0.00013699,2]
[356859485,1743336699958,-163.854189,0.00013699,2]
[356859486,1743336699967,-163.854189,0.00013699,2]
[356859487,1743336699976,-163.854189,0.00013699,2]
[356859488,1743336699985,-163.854189,0.00013699,2]
[356859489,1743336699994,-163.854189,0.00013699,2]
[356859490,1743336700003,-163.854189,0.00013699,2]
[356859491,1743336700011,-163.854189,0.00013699,2]
[356859492,1743336700020,-163.854189,0.00013699,2]
[356859493,1743336700029,-163.854189,0.00013699,2]
[356859494,1743336700038,-163.854189,0.00013699,2]
[356859495,1743336700047,-461.249,0.00016961,2]
[356859496,1743336700056,-1459.68,0.00019178,2]
[356859497,1743336700065,-1459.68,0.00019452,2]
[356859498,1743336700074,-1459.68,0.00019726,2]
[356859499,1743336700084,-401.0,0.00019961,2]
[356859500,1743336700094,-1459.68,0.0002,2]
[356859501,1743336700103,-1459.68,0.00020273,2]
[356859502,1743336700112,-1416.85341986,0.00020547,2]
[356859503,1743336700124,-42.82658014,0.00020547,2]
[356859504,1743336700134,-1459.68,0.00020821,2]
[356859505,1743336700144,-401.0,0.00022961,2]
[356859506,1743336700153,-2411.49341986,0.00024109,2]
[356859507,1743336700321,-2742.77701098,0.00013158,2]
[356859508,1743336700330,-163.854189,0.00013699,2]
[356859509,1743336700340,-163.854189,0.00013699,2]
[356859510,1743336700350,-163.854189,0.00013699,2]
[356859511,1743336700360,-47.2829268,0.00013699,2]
[356859512,1743336700466,-116.5712622,0.00013699,2]
[356859513,1743336700476,-163.854189,0.00013699,2]
[356859514,1743336700486,-163.854189,0.00013699,2]
[356859515,1743336700496,-163.854189,0.00013699,2]
[356859516,1743336700505,-163.85418,0.00013699,2]
[356859517,1743336700515,-2742.77701094,0.00015578,2]
[356859518,1743336700525,-1459.68,0.00021095,2]
[356859519,1743336700535,-1459.68,0.00021369,2]
[356859520,1743336700545,-1459.68,0.00021643,2]
[356859521,1743336700555,-1459.68,0.00021917,2]
[356859522,1743336700567,-1459.68,0.00022191,2]
[356859523,1743336700577,-1459.68,0.00022465,2]
[356859524,1743336700586,-1459.68,0.00022739,2]
[356859525,1743336700597,-1459.68,0.00023013,2]
[356859526,1743336700607,-1459.68,0.00023287,2]
[356859527,1743336700617,-1459.68,0.00023561,2]
[356859528,1743336700627,-1459.68,0.00023835,2]
[356859529,1743336700637,-1312.33658014,0.00024109,2]
[356859530,1743336700647,-1459.68,0.00024109,2]
[356859531,1743336700657,-8539.25,0.00024383,2]
[356859532,1743336700667,-540.62,0.00024383,2]
[356859533,1743336700676,-3723.83,0.00024383,2]
[356859534,1743336700686,-1459.68,0.00024383,2]
[356859535,1743336700696,-8539.25,0.00024657,2]
[356859536,1743336700705,-540.62,0.00024657,2]
[356859537,1743336700715,-3723.83,0.00024657,2]
[356859538,1743336700725,-1459.68,0.00024657,2]
[356859539,1743336700735,-8539.25,0.00024931,2]
[356859540,1743336700744,-540.62,0.00024931,2]
[356859541,1743336700757,-3723.83,0.00024931,2]
[356859542,1743336700767,-1459.68,0.00024931,2]
[356859543,1743336700776,-8539.25,0.00025205,2]
[356859544,1743336700785,-540.62,0.00025205,2]
[356859545,1743336700795,-3723.83,0.00025205,2]
[356859546,1743336700804,-1459.68,0.00025205,2]
[356859547,1743336700814,-8539.32160894,0.00025479,2]
[356859548,1743336700824,-540.77030172,0.00025479,2]
[356859549,1743336700834,-3723.93418316,0.00025479,2]
[356859550,1743336700844,-1459.81650038,0.00025479,2]
[356859551,1743336700855,-401.0,0.00025961,2]
[356859552,1743336700864,-401.0,0.00028961,2]
[356859553,1743336700874,-318.0,0.0003,7]
[356859554,1743336700884,-318.0,0.0003,7]
[356859555,1743336700894,-318.0,0.0003,7]
[356859556,1743336700903,-318.0,0.0003,7]
[356859557,1743336700912,-318.0,0.0003,7]
[356859558,1743336700923,-318.0,0.0003,7]
[356859559,1743336700933,-318.0,0.0003,7]
[356859560,1743336700943,-439.42044866,0.0003,7]
[356859561,1743336700953,-10839.26885686,0.000318,14]
[356859562,1743336700965,-11498.2692764,0.000318,14]
[356859563,1743336700977,-11000.0,0.000318,14]
[356859564,1743336708927,690.7,0.00010959,2]
[356859566,1743337139489,365.1630523,0.00010685,2]
[356859571,1743337626126,-343.59788207,0.00011457,2]
[356859572,1743337640113,-275.80240599,0.00011457,2]
[356859573,1743337640137,-327.05325715,0.00011573,2]
[356859574,1743337640159,-300.0,0.00011587,2]
[356859575,1743337640181,-4927.95501551,0.00011588,2]
[356859580,1743337752180,-300.0,0.00011587,2]
[356859581,1743337752205,-500.0,0.00011587,2]
[356859582,1743337752231,-500.0,0.00011587,2]
[356859583,1743337752255,-500.0,0.00011587,2]
[356859584,1743337752279,-11222.53230034,0.00011588,2]
[356859585,1743337752302,-500.0,0.00011588,2]
[356859586,1743337752325,-500.0,0.00011588,2]
[356859587,1743337752348,-500.0,0.00011588,2]
[356859588,1743337752372,-500.0,0.00011588,2]
[356859589,1743337752397,-500.0,0.00011588,2]
[356859590,1743337752420,-500.0,0.00011588,2]
[356859591,1743337752445,-500.0,0.00011588,2]
[356859592,1743337752470,-500.0,0.00011588,2]
[356859593,1743337752493,-500.0,0.00011588,2]
[356859594,1743337752516,-500.0,0.00011588,2]
[356859595,1743337752539,-500.0,0.00011588,2]
[356859596,1743337752562,-500.0,0.00011588,2]
[356859597,1743337752585,-500.0,0.00011588,2]
[356859598,1743337752609,-500.0,0.00011588,2]
[356859599,1743337752632,-500.0,0.00011588,2]
[356859600,1743337752655,-500.0,0.00011588,2]
[356859601,1743337752678,-500.0,0.00011588,2]
[356859602,1743337752700,-504.52057491,0.00011588,2]
[356859603,1743337752724,-500.0,0.00011588,2]
[356859604,1743337752746,-500.0,0.00011588,2]
[356859605,1743337752770,-500.0,0.00011588,2]
[356859606,1743337752792,-500.0,0.00011589,2]
[356859607,1743337752815,-264.80075108,0.00011589,2]
[356859608,1743337752837,-24900.0,0.0001159,2]
[356859609,1743337752858,-500.0,0.00011973,2]
[356859610,1743337752879,-500.0,0.00011973,2]
[356859611,1743337752900,-500.0,0.00011973,2]
[356859612,1743337752922,-69929.3595395,0.0001199,2]
[356859613,1743337752947,-8593.73356527,0.00012119,2]
[356859614,1743337766131,-315.37943622,0.00012119,2]
[356859662,1743337831968,-206.2968269,0.00012028,2]
[356859663,1743337831978,-1090.88699851,0.00012119,2]
[356859664,1743337831987,-198.96397308,0.00012211,2]
[356859665,1743337831998,-5000.0,0.00013058,2]
[356859666,1743337832007,-2057.08275824,0.00013073,2]
[356859667,1743337832016,-300.0,0.00013154,2]
[356859668,1743337832025,-54788.35666477,0.00013155,2]
[356859693,1743337838235,-589.72110784,0.00013154,2]
[356859694,1743337838244,-500.0,0.00013154,2]
[356859695,1743337838254,-500.0,0.00013154,2]
[356859696,1743337838263,-167.16895277,0.00013154,2]
[356859697,1743337838272,-11331.22727367,0.00013155,2]
[356859698,1743337838284,-45749.80535395,0.00013155,2]
[356859699,1743337838574,-1570.50546215,0.00013155,2]
[356859733,1743337843110,-273.69496292,0.00013155,2]
[356859734,1743337843126,-173415.52867066,0.00013155,2]
[356859735,1743337843136,-500.0,0.00013173,2]
[356859736,1743337843146,-264.65067899,0.00013173,2]
[356859737,1743337843155,-500.0,0.00013173,2]
[356859738,1743337843165,-539.88718092,0.00013173,2]
[356859739,1743337843175,-502.6683568,0.00013173,2]
[356859740,1743337843185,-500.0,0.00013173,2]
[356859741,1743337843196,-500.0,0.00013173,2]
[356859742,1743337843205,-500.0,0.00013173,2]
[356859743,1743337843215,-500.0,0.00013173,2]
[356859744,1743337843224,-500.54168436,0.00013173,2]
[356859745,1743337843233,-500.0,0.00013173,2]
[356859747,1743337843242,-500.0,0.00013173,2]
[356859749,1743337843251,-500.0,0.00013173,2]
[356859751,1743337843261,-500.0,0.00013173,2]
[356859753,1743337843270,-500.0,0.00013173,2]
[356859755,1743337843279,-500.0,0.00013173,2]
[356859757,1743337843288,-500.0,0.00013173,2]
[356859758,1743337843297,-500.0,0.00013173,2]
[356859760,1743337843306,-500.0,0.00013173,2]
[356859761,1743337843316,-500.0,0.00013173,2]
[356859763,1743337843325,-424.10133375,0.00013173,2]
[356859765,1743337843334,-500.0,0.00013673,2]
[356859766,1743337843344,-500.0,0.00013673,2]
[356859767,1743337843353,-500.0,0.00013673,2]
[356859768,1743337843362,-500.0,0.00013673,2]
[356859769,1743337843371,-500.0,0.00013673,2]